bitfinex/quotes_SOLUSD_20251001
["timestamp","ask_amount","ask_price","bid_price","bid_amount"]
[1759284888334,7.83924624,210.41,210.4,33.5]
[1759284889832,7.83924624,210.41,210.39,37.06]
[1759284890015,7.83924624,210.41,210.4,33.5]
[1759284890820,4.75262582,210.41,210.4,33.5]
[1759284892138,4.75239996,210.42,210.4,33.5]
[1759284892521,5.47239996,210.42,210.4,33.5]
[1759284892831,4.75239996,210.42,210.4,33.5]
[1759284893034,5.43239996,210.42,210.4,33.5]
[1759284893408,0.68,210.41,210.4,33.5]
[1759284894239,5.43262582,210.41,210.4,33.5]
[1759284894958,5.43262582,210.41,210.39,37.06]
[1759284895143,0.68,210.4,210.39,37.06]
[1759284895527,7.11924624,210.41,210.39,37.06]
[1759284895729,5.43262582,210.41,210.39,37.06]
[1759284896145,5.43262582,210.41,210.4,33.5]
[1759284898441,7.79924624,210.41,210.4,33.5]
[1759284899538,5.43262582,210.41,210.4,33.5]
[1759284900516,19.6808108,210.41,210.38,0.2]
[1759284900840,19.6808108,210.41,210.26,3.93650824]
[1759284900841,20.8,210.38,210.26,3.93650824]
[1759284901043,2.36662042,210.36,210.26,13.59559401]
[1759284901243,3.04662042,210.35,210.25,13.59559401]
[1759284901632,16.63972615,210.34,210.25,13.59559401]
[1759284901941,16.63972615,210.34,210.26,33.48]
[1759284902647,4.75420747,210.34,210.26,33.48]
[1759284903023,25.55420747,210.34,210.26,33.48]
[1759284903538,25.55420747,210.34,210.26,38.23585445]
[1759284903847,4.75420747,210.34,210.27,13.87991715]
[1759284904045,4.75420747,210.34,210.28,33.48]
[1759284905041,11.8844708,210.36,210.28,38.23551323]
[1759284905246,11.8844708,210.36,210.28,33.48]
[1759284905843,4.75352949,210.37,210.29,13.87991715]
[1759284906047,4.75352949,210.37,210.3,33.48]
[1759284906426,20.8,210.4,210.3,33.48]
[1759284906648,4.75310002,210.39,210.32,0.28432314]
[1759284906840,4.75310002,210.39,210.31,13.59559401]
[1759284906841,0.68,210.49,210.35,13.87991715]
[1759284907032,4.75104522,210.48,210.38,0.28432314]
[1759284907239,4.75104522,210.48,210.39,33.48]
[1759284908146,16.62865829,210.48,210.39,33.48]
[1759284908333,16.62865829,210.48,210.39,38.23298944]
[1759284908742,4.75104522,210.48,210.39,38.23298944]
[1759284909430,4.75104522,210.48,210.4,13.59559401]
[1759284909828,4.75104522,210.48,210.41,74.12]
[1759284910029,4.75104522,210.48,210.42,33.48]
[1759284910527,4.75059382,210.5,210.42,38.23238231]
[1759284910830,16.62707838,210.5,210.42,33.48]
[1759284912453,0.68,210.56,210.45,4.75172249]
[1759284912665,0.68,210.56,210.46,33.48]
[1759284913255,0.68,210.56,210.47,13.59559401]
[1759284913564,20.8,210.55,210.47,13.59559401]
[1759284914664,4.74969127,210.54,210.47,13.59559401]
[1759284919055,16.62391944,210.54,210.47,13.59559401]
[1759284919265,2.36662042,210.52,210.44,79.1]
[1759284919463,0.65,210.51,210.45,33.46]
[1759284919782,0.65,210.5,210.45,33.46]
[1759284919955,2.36662042,210.52,210.45,33.46]
[1759284920273,0.65,210.49,210.45,33.46]
[1759284920679,4.75104522,210.48,210.45,33.46]
[1759284920874,5.40104522,210.48,210.45,33.46]
[1759284921055,4.75104522,210.48,210.45,33.46]
[1759284922492,0.65,210.47,210.45,33.46]
[1759284923273,4.75149672,210.46,210.45,33.46]
[1759284925365,16.62865829,210.48,210.45,33.46]
[1759284925568,17.34865829,210.48,210.41,166.81559401]
[1759284925766,17.34865829,210.48,210.42,33.46]
[1759284926876,17.34865829,210.48,210.43,33.46]
[1759284927183,0.72,210.47,210.43,112.56]
[1759284929068,4.75149672,210.46,210.43,112.56]
[1759284929268,0.72,210.45,210.41,74.12]
[1759284929481,0.72,210.44,210.42,33.46]
[1759284929783,18.99685894,210.46,210.42,33.46]
[1759284929784,0.72,210.43,210.42,33.46]
[1759284930585,16.63023852,210.46,210.42,33.46]
[1759284930586,17.35023852,210.46,210.42,33.46]
[1759284930786,0.72,210.45,210.42,33.46]
[1759284931476,5.47194829,210.44,210.42,33.46]
[1759284931667,0.72,210.43,210.42,33.46]
[1759284932551,5.47217411,210.43,210.42,33.46]
[1759284933864,4.75217411,210.43,210.42,33.46]
[1759284934380,4.7519623,210.44,210.42,33.46]
[1759284935287,17.35023852,210.46,210.42,33.46]
[1759284935484,4.75149672,210.46,210.42,33.46]
[1759284935670,5.47149672,210.46,210.42,33.46]
[1759284936062,5.47149672,210.46,210.42,112.56]
[1759284936874,0.72,210.45,210.42,112.56]
[1759284937192,4.75149672,210.46,210.42,112.56]
[1759284937389,11.87827991,210.47,210.42,112.56]
[1759284937686,0.72,210.46,210.42,112.56]
[1759284938088,11.87827991,210.47,210.42,112.56]
[1759284938286,0.72,210.46,210.42,112.56]
[1759284939794,4.75194829,210.44,210.42,112.56]
[1759284940285,0.72,210.43,210.41,74.12]
[1759284940592,16.63181903,210.44,210.42,33.44]
[1759284941086,0.72,210.43,210.42,33.44]
[1759284942278,5.47217411,210.43,210.42,33.44]
[1759284945368,19.71922982,210.43,210.28,14.26]
[1759284945577,2.36662042,210.41,210.29,13.59559401]
[1759284945778,0.72,210.4,210.29,13.59559401]
[1759284945981,0.72,210.39,210.3,0.28432314]
[1759284946185,0.72,210.39,210.29,13.59559401]
[1759284946489,0.72,210.38,210.3,0.28432314]
[1759284946695,0.72,210.38,210.31,13.59559401]
[1759284946890,0.72,210.37,210.32,33.44]
[1759284947094,0.72,210.36,210.32,33.44]
[1759284947275,19.0008108,210.41,210.32,33.44]
[1759284947276,0.72,210.38,210.32,33.44]
[1759284947694,4.75375546,210.36,210.32,33.44]
[1759284948192,5.47375546,210.36,210.32,33.44]
[1759284949091,4.75375546,210.36,210.32,33.44]
[1759284949895,0.72,210.35,210.33,37.06]
[1759284950074,0.72,210.37,210.34,33.44]
[1759284950269,18.14876644,210.41,210.34,33.44]
[1759284950483,0.72,210.4,210.34,33.44]
[1759284950684,0.72,210.39,210.34,33.44]
[1759284950878,4.75352949,210.37,210.34,33.44]
[1759284951083,5.47352949,210.37,210.34,33.44]
[1759284956707,5.42352949,210.37,210.34,33.44]
[1759284957583,5.42352949,210.37,210.35,33.44]
[1759284958287,17.30735322,210.37,210.35,33.44]
[1759284958803,5.42352949,210.37,210.35,33.44]
[1759284960484,11.88340874,210.38,210.35,33.44]
[1759284960705,0.67,210.36,210.35,33.44]
[1759284962613,5.42375546,210.36,210.35,33.44]
[1759284963600,6.93833152,210.36,210.35,33.44]
[1759284963796,18.82272018,210.36,210.33,37.06]
[1759284964102,18.82272018,210.36,210.31,37.06]
[1759284964103,20.8,210.33,210.31,37.06]
[1759284964411,20.8,210.33,210.32,37.06]
[1759284964588,25.5544335,210.33,210.32,37.06]
[1759284964788,26.2244335,210.33,210.32,37.06]
[1759284965106,26.2244335,210.33,210.32,70.5]
[1759284965503,26.2244335,210.33,210.21,21.0]
[1759284965504,39.62509333,210.33,210.21,0.2]
[1759284965815,1.51457606,210.28,210.22,33.44]
[1759284965995,0.67,210.27,210.22,33.44]
[1759284966201,0.67,210.26,210.22,33.44]
[1759284966504,0.67,210.25,210.22,33.44]
[1759284966704,4.75646879,210.24,210.22,33.44]
[1759284968999,0.67,210.23,210.22,33.44]
[1759284969199,4.75646879,210.24,210.22,33.44]
[1759284969411,0.67,210.23,210.22,33.44]
[1759284969918,0.67,210.23,210.22,70.5]
[1759284970094,6.27014006,210.28,210.22,70.5]
[1759284970420,4.75601636,210.26,210.22,70.5]
[1759284970617,5.42601636,210.26,210.22,70.5]
[1759284970916,0.67,210.25,210.22,70.5]
[1759284971217,1.51457606,210.23,210.22,37.06]
[1759284971413,2.18457606,210.23,210.22,70.5]
[1759284972618,6.9412711,210.23,210.22,70.5]
[1759284973599,5.42669504,210.23,210.22,70.5]
[1759284973930,6.9412711,210.23,210.22,70.5]
[1759284974915,6.9412711,210.23,210.21,0.2]
[1759284975119,1.51457606,210.22,210.21,0.2]
[1759284975317,1.51457606,210.22,210.2,0.2]
[1759284975493,2.18457606,210.21,210.2,0.2]
[1759284975922,0.67,210.21,210.2,0.2]
[1759284976221,2.18457606,210.21,210.2,33.66]
[1759284976420,22.98457606,210.21,210.2,33.66]
[1759284977222,27.74172367,210.21,210.2,33.66]
[1759284977995,26.22714761,210.21,210.2,33.66]
[1759284978195,26.24714761,210.21,210.2,33.66]
[1759284979898,26.24714761,210.21,210.2,70.74]
[1759284983299,27.76172367,210.21,210.2,70.74]
[1759284984712,25.55714761,210.21,210.2,70.74]
[1759284984918,4.75714761,210.21,210.2,70.74]
[1759284985502,4.75692132,210.22,210.2,70.74]
[1759284986014,0.66,210.21,210.2,70.74]
[1759284987319,4.75692132,210.22,210.2,70.74]
[1759284987523,5.41692132,210.22,210.2,70.74]
[1759284988317,4.75692132,210.22,210.2,70.74]
[1759284988518,0.66,210.21,210.2,70.74]
[1759284988722,4.75692132,210.22,210.2,70.74]
[1759284989720,21.46,210.21,210.2,37.28]
[1759284989908,22.97457606,210.21,210.2,70.74]
[1759284990113,21.46,210.21,210.2,70.74]
[1759284990514,22.97457606,210.21,210.2,70.74]
[1759284990824,21.46,210.21,210.2,70.74]
[1759284991434,16.64843266,210.23,210.2,70.74]
[1759284991745,11.89173762,210.23,210.2,70.74]
[1759284993136,4.75646879,210.24,210.2,70.74]
[1759284993509,16.64764078,210.24,210.2,70.74]
[1759284993925,11.89117199,210.24,210.2,70.74]
[1759284995635,16.64764078,210.24,210.2,70.74]
[1759284996017,4.75646879,210.24,210.2,70.74]
[1759284997131,16.64605726,210.26,210.2,70.74]
[1759284997331,17.30605726,210.26,210.2,70.74]
[1759284998244,11.8900409,210.26,210.2,70.74]
[1759284999617,17.30605726,210.26,210.2,70.74]
[1759284999819,4.75601636,210.26,210.2,70.74]
[1759285000418,4.75601636,210.26,210.2,75.49735983]
[1759285000626,4.75572635,210.28,210.21,13.59559401]
[1759285000836,4.75572635,210.28,210.22,33.44]
[1759285001434,4.75572635,210.28,210.23,13.59559401]
[1759285001739,11.88786722,210.3,210.24,33.44]
[1759285003625,16.64297896,210.3,210.24,33.44]
[1759285004144,4.75511174,210.3,210.24,33.44]
[1759285006350,4.75488564,210.31,210.24,33.44]
[1759285006523,16.64209975,210.31,210.24,33.44]
[1759285007852,17.30209975,210.31,210.24,33.44]
[1759285009130,16.64209975,210.31,210.24,33.44]
[1759285010259,4.75533786,210.29,210.24,33.44]
[1759285010454,5.41533786,210.29,210.24,33.44]
[1759285010753,4.75533786,210.29,210.24,33.44]
[1759285011657,0.66,210.29,210.24,33.44]
[1759285013246,0.66,210.29,210.24,112.54]
[1759285013762,5.41547754,210.29,210.24,112.54]
[1759285013966,4.75547754,210.29,210.24,112.54]
[1759285014941,0.71,210.38,210.28,13.59559401]
[1759285015165,2.36816565,210.42,210.3,13.59559401]
[1759285015359,0.71,210.39,210.3,13.59559401]
[1759285015544,0.71,210.38,210.3,13.59559401]
[1759285015743,20.8,210.41,210.3,13.59559401]
[1759285015744,0.71,210.37,210.3,13.59559401]
[1759285016153,4.75375546,210.36,210.3,13.59559401]
[1759285018062,4.75375546,210.36,210.3,18.35063313]
[1759285018254,11.88328157,210.38,210.3,18.35063313]
[1759285018838,0.71,210.37,210.3,18.35063313]
[1759285019171,20.8,210.35,210.24,5.73072295]
[1759285019464,0.71,210.34,210.25,47.01559401]
[1759285019663,20.8,210.35,210.25,47.01559401]
[1759285019664,0.71,210.33,210.25,47.01559401]
[1759285019873,0.71,210.32,210.25,47.01559401]
[1759285020243,4.75488564,210.31,210.25,47.01559401]
[1759285020441,5.46488564,210.31,210.25,47.01559401]
[1759285021165,4.75488564,210.31,210.25,51.77182235]
[1759285022559,4.75488564,210.31,210.25,47.01559401]
[1759285024572,0.71,210.3,210.25,47.01559401]
[1759285024771,0.71,210.29,210.25,47.01559401]
[1759285025267,21.51,210.28,210.21,13.59559401]
[1759285025471,0.71,210.27,210.22,33.42]
[1759285025673,0.71,210.26,210.22,33.42]
[1759285026048,16.6428911,210.3,210.22,33.42]
[1759285026256,0.71,210.29,210.22,33.42]
[1759285026463,4.75511174,210.3,210.23,13.59559401]
[1759285026656,0.71,210.29,210.23,13.59559401]
[1759285027874,5.4655246,210.29,210.23,13.59559401]
[1759285029559,0.71,210.28,210.23,13.59559401]
[1759285029872,0.71,210.27,210.21,79.1]
[1759285030109,19.01105675,210.3,210.22,33.42]
[1759285030110,0.71,210.26,210.22,33.42]
[1759285030256,0.71,210.25,210.22,33.42]
[1759285030578,0.71,210.24,210.22,33.42]
[1759285030757,0.71,210.23,210.22,33.42]
[1759285031174,17.3528911,210.3,210.22,33.42]
[1759285031373,17.3528911,210.3,210.23,13.59559401]
[1759285031374,5.46511174,210.3,210.23,13.59559401]
[1759285031581,5.46511174,210.3,210.23,18.35219692]
[1759285031764,4.75490748,210.31,210.24,0.28432314]
[1759285031963,4.75490748,210.31,210.25,33.42]
[1759285032378,5.46490748,210.31,210.25,33.42]
[1759285032877,0.1,210.45,210.35,0.28432314]
[1759285033081,0.1,210.45,210.38,0.28432314]
[1759285033264,0.1,210.45,210.39,70.58]
[1759285034172,4.85177294,210.45,210.39,75.33307042]
[1759285034370,4.85177294,210.45,210.39,70.58]
[1759285037281,4.85177294,210.45,210.39,75.33304167]
[1759285038069,4.85177294,210.45,210.39,70.58]
[1759285038582,4.85177294,210.45,210.39,75.33307457]
[1759285038771,4.85177294,210.45,210.39,70.58]
[1759285039558,4.85177294,210.45,210.39,75.33307092]
[1759285042787,4.85177294,210.45,210.39,112.39307092]
[1759285043987,0.1,210.45,210.4,13.59559401]
[1759285044170,4.85172834,210.45,210.4,13.59559401]
[1759285048084,4.85172834,210.45,210.4,18.34837923]
[1759285050896,0.1,210.45,210.41,0.28432314]
[1759285051206,0.1,210.45,210.42,33.4]
[1759285054306,0.1,210.45,210.42,38.15238297]
[1759285054504,0.1,210.45,210.43,13.59559401]
[1759285054905,0.1,210.45,210.43,92.69559401]
[1759285056009,0.1,210.45,210.43,97.44768622]
[1759285056208,0.1,210.45,210.43,92.69559401]
[1759285056508,0.1,210.45,210.44,33.4]
[1759285059106,5.51172249,210.45,210.44,33.4]
[1759285062014,5.51172249,210.45,210.44,70.44]
[1759285063403,0.1,210.45,210.44,70.44]
[1759285066494,0.1,210.45,210.44,84.03559401]
[1759285066692,0.1,210.45,210.44,88.7875423]
[1759285066892,0.1,210.45,210.44,84.03559401]
[1759285069703,0.1,210.45,210.44,88.7875423]
[1759285069905,0.1,210.45,210.44,84.03559401]
[1759285070420,0.76,210.45,210.44,84.03559401]
[1759285072219,0.1,210.45,210.44,84.03559401]
[1759285073336,0.79,210.45,210.44,84.03559401]
[1759285073713,0.79,210.45,210.44,70.44]
[1759285073913,5.54172249,210.45,210.44,70.44]
[1759285088844,0.1,210.45,210.44,70.44]
[1759285090461,0.1,210.45,210.44,149.54]
[1759285091768,0.1,210.45,210.44,70.44]
[1759285094068,0.1,210.45,210.44,89.07186544]
[1759285094953,0.1,210.45,210.44,94.80258839]
[1759285095661,0.1,210.45,210.44,94.78258839]
[1759285097361,0.1,210.45,210.44,109.04258839]
[1759285099068,0.1,210.45,210.44,188.14258839]
[1759285100156,0.81,210.45,210.44,42.77072295]
[1759285100357,0.81,210.45,210.44,37.04]
[1759285100559,17.44102873,210.45,210.44,70.42]
[1759285103474,18.95386445,210.45,210.44,70.42]
[1759285104262,20.8,210.42,210.36,13.59559401]
[1759285104467,0.69,210.41,210.37,37.04]
[1759285104668,0.69,210.4,210.37,37.04]
[1759285105773,0.69,210.39,210.38,33.38]
[1759285106374,5.44307761,210.39,210.38,33.38]
[1759285108269,4.75307761,210.39,210.38,112.48]
[1759285109187,4.75285171,210.4,210.38,112.48]
[1759285109487,5.44285171,210.4,210.38,112.48]
[1759285111184,0.69,210.39,210.37,37.04]
[1759285111389,16.63498098,210.4,210.38,33.38]
[1759285111690,25.55259477,210.42,210.38,33.38]
[1759285111994,0.69,210.41,210.38,33.38]
[1759285112972,5.44218943,210.43,210.38,33.38]
[1759285113177,4.75194829,210.44,210.39,0.66]
[1759285113385,5.44194829,210.44,210.4,33.38]
[1759285113585,4.75194829,210.44,210.4,33.38]
[1759285113788,0.69,210.43,210.4,33.38]
[1759285113977,0.69,210.42,210.4,33.38]
[1759285114189,0.69,210.41,210.4,33.38]
[1759285115279,5.44262582,210.41,210.4,33.38]
[1759285115476,4.75262582,210.41,210.4,33.38]
[1759285115680,11.87987074,210.44,210.4,34.04]
[1759285115681,4.75217411,210.43,210.4,34.04]
[1759285116067,4.75217411,210.43,210.4,33.38]
[1759285116576,0.1,210.45,210.41,0.66]
[1759285116771,0.1,210.45,210.42,33.38]
[1759285117090,4.85172393,210.45,210.42,33.38]
[1759285117277,0.69,210.44,210.42,33.38]
[1759285118383,4.75199406,210.44,210.42,33.38]
[1759285118697,4.85172569,210.45,210.42,34.04]
[1759285119689,0.1,210.45,210.42,34.04]
[1759285119891,0.1,210.45,210.43,0.66]
[1759285120097,4.85172943,210.45,210.44,33.38]
[1759285120476,0.1,210.45,210.44,33.38]
[1759285120885,5.54172249,210.45,210.44,33.38]
[1759285122770,5.54172249,210.45,210.44,70.44]
[1759285123196,4.85172249,210.45,210.44,70.44]
[1759285124002,0.1,210.45,210.44,70.44]
[1759285124205,0.1,210.45,210.44,71.1]
[1759285124384,0.1,210.45,210.44,70.44]
[1759285126103,4.85172249,210.45,210.44,70.44]
[1759285140525,5.55172249,210.45,210.44,70.44]
[1759285141105,4.85172249,210.45,210.44,70.44]
[1759285142018,5.55172249,210.45,210.44,70.44]
[1759285144619,5.55172249,210.45,210.44,70.42]
[1759285146217,0.1,210.45,210.44,71.14]
[1759285146418,0.1,210.45,210.44,70.42]
[1759285148031,4.85172249,210.45,210.44,70.42]
[1759285149026,5.55172249,210.45,210.44,70.42]
[1759285149711,0.1,210.45,210.44,70.42]
[1759285149915,9.10148703,210.63,210.44,70.42]
[1759285149916,0.7,210.55,210.45,13.59559401]
[1759285150114,0.7,210.55,210.47,0.28432314]
[1759285150310,0.7,210.55,210.49,13.59559401]
[1759285150532,0.7,210.55,210.5,33.36]
[1759285150731,0.7,210.54,210.5,33.36]
[1759285150938,0.7,210.53,210.5,33.36]
[1759285151239,0.7,210.52,210.5,33.36]
[1759285151440,0.7,210.51,210.5,33.36]
[1759285152245,5.45036815,210.51,210.5,33.36]
[1759285154235,4.75036815,210.51,210.5,33.36]
[1759285154626,5.4501425,210.52,210.5,33.36]
[1759285154827,5.4501425,210.52,210.44,55.40748899]
[1759285154828,3.06407303,210.51,210.44,116.16]
[1759285155032,3.06407303,210.5,210.45,33.36]
[1759285155340,0.7,210.5,210.45,33.36]
[1759285155528,0.7,210.49,210.45,33.36]
[1759285155722,0.7,210.48,210.45,33.36]
[1759285156040,0.7,210.47,210.45,33.36]
[1759285157137,4.75149672,210.46,210.45,33.36]
[1759285157919,4.75121469,210.48,210.45,33.36]
[1759285158428,5.45121469,210.48,210.45,33.36]
[1759285159826,0.7,210.47,210.45,33.36]
[1759285160024,0.7,210.46,210.45,33.36]
[1759285161629,0.7,210.46,210.32,4.55244455]
[1759285161630,20.8,210.45,210.32,4.55244455]
[1759285161840,23.16407303,210.4,210.31,3.92852976]
[1759285162034,0.72,210.39,210.3,4.55852976]
[1759285162230,0.72,210.38,210.3,4.55852976]
[1759285162430,0.72,210.37,210.3,0.63]
[1759285162632,0.72,210.37,210.31,13.59559401]
[1759285162950,0.72,210.36,210.32,33.36]
[1759285163143,0.7,210.35,210.32,33.36]
[1759285164137,4.75420747,210.34,210.32,33.36]
[1759285165553,12.58429452,210.37,210.32,33.36]
[1759285165850,0.7,210.36,210.32,33.36]
[1759285166036,11.88429452,210.37,210.32,33.36]
[1759285166239,0.7,210.36,210.32,33.36]
[1759285166441,0.7,210.35,210.32,33.36]
[1759285166638,0.7,210.34,210.32,33.36]
[1759285166826,0.7,210.33,210.32,33.36]
[1759285167741,5.4544335,210.33,210.32,33.36]
[1759285168336,4.7544335,210.33,210.32,33.36]
[1759285169145,5.4544335,210.33,210.32,33.36]
[1759285169955,5.4544335,210.33,210.32,70.42]
[1759285171253,4.75397629,210.36,210.32,71.05]
[1759285171457,4.75397629,210.36,210.33,0.63]
[1759285172054,4.75352949,210.37,210.32,70.42]
[1759285172260,4.75352949,210.37,210.33,0.63]
[1759285173158,4.75352949,210.37,210.34,0.63]
[1759285173349,4.7530264,210.4,210.35,34.01]
[1759285173550,4.7530264,210.4,210.36,34.01]
[1759285173752,5.4530264,210.4,210.36,33.38]
[1759285173951,16.63353968,210.42,210.36,33.38]
[1759285174156,17.33353968,210.42,210.36,33.38]
[1759285174359,16.63353968,210.42,210.37,0.63]
[1759285174563,16.63353968,210.42,210.36,33.38]
[1759285174762,16.63353968,210.42,210.36,34.01]
[1759285175142,16.63353968,210.42,210.36,33.38]
[1759285175348,0.7,210.41,210.36,33.38]
[1759285175557,0.7,210.4,210.36,33.38]
[1759285176056,4.75330354,210.38,210.36,33.38]
[1759285176260,11.88113972,210.42,210.37,0.63]
[1759285176452,17.33419038,210.41,210.36,33.38]
[1759285176765,0.7,210.4,210.36,33.38]
[1759285176960,16.63419038,210.41,210.36,33.38]
[1759285177162,0.7,210.4,210.36,33.38]
[1759285177562,0.7,210.43,210.37,0.63]
[1759285177771,0.7,210.45,210.38,13.59559401]
[1759285177947,0.7,210.45,210.39,33.38]
[1759285178147,20.8,210.43,210.39,33.38]
[1759285178337,20.8,210.43,210.39,34.01]
[1759285178545,0.7,210.43,210.39,33.38]
[1759285178959,4.75194829,210.44,210.39,34.01]
[1759285179152,5.45194829,210.44,210.39,34.01]
[1759285179351,4.75168502,210.46,210.4,14.22559401]
[1759285179670,25.55168502,210.46,210.41,0.63]
[1759285179854,5.45120623,210.48,210.42,33.38]
[1759285180252,0.7,210.47,210.42,33.38]
[1759285180450,0.7,210.46,210.42,33.38]
[1759285180871,0.7,210.45,210.42,33.38]
[1759285182351,4.75182072,210.45,210.42,33.38]
[1759285182561,4.75139875,210.47,210.43,0.63]
[1759285182764,4.75139875,210.47,210.42,33.38]
[1759285182968,4.75139875,210.47,210.42,34.01]
[1759285183667,26.25103399,210.49,210.42,34.01]
[1759285185174,38.12808278,210.49,210.42,34.01]
[1759285186556,37.42808278,210.49,210.43,0.63]
[1759285186757,4.75103399,210.49,210.43,0.91432314]
[1759285186959,4.75103399,210.49,210.44,0.63]
[1759285187163,4.75103399,210.49,210.45,0.63]
[1759285187376,5.45103399,210.49,210.46,33.38]
[1759285188862,0.7,210.49,210.46,33.38]
[1759285191277,5.45102284,210.49,210.46,33.38]
[1759285193182,4.75062058,210.5,210.46,33.38]
[1759285193363,4.75062058,210.5,210.47,0.63]
[1759285193564,4.75062058,210.5,210.48,0.63]
[1759285193961,4.75012463,210.53,210.49,0.63]
[1759285194179,4.75012463,210.53,210.5,33.36]
[1759285194365,0.69,210.53,210.51,37.04]
[1759285195176,16.62391944,210.54,210.51,37.04]
[1759285195477,0.69,210.52,210.51,37.04]
[1759285196881,5.4401425,210.52,210.51,37.04]
[1759285197985,20.8,210.49,210.38,0.63]
[1759285198193,1.51211329,210.47,210.39,70.4]
[1759285198364,1.51211329,210.47,210.4,0.63]
[1759285198565,2.20211329,210.47,210.4,0.63]
[1759285198982,16.63023852,210.46,210.4,0.63]
[1759285199181,17.32023852,210.46,210.4,0.63]
[1759285199690,17.32023852,210.46,210.39,70.4]
[1759285200385,16.63181903,210.44,210.39,70.4]
[1759285200691,17.32181903,210.44,210.39,70.4]
[1759285201778,16.63181903,210.44,210.39,70.4]
[1759285202086,0.69,210.43,210.39,70.4]
[1759285202473,4.75239996,210.42,210.39,70.4]
[1759285202667,0.69,210.41,210.39,37.04]
[1759285202874,0.69,210.4,210.39,37.04]
[1759285203077,21.49,210.4,210.39,37.04]
[1759285203378,21.49,210.4,210.39,70.4]
[1759285203577,23.00211329,210.4,210.39,70.4]
[1759285203981,20.8,210.4,210.39,70.4]
[1759285204183,4.75239996,210.42,210.39,71.03]
[1759285204376,11.87787065,210.48,210.39,70.4]
[1759285204695,17.31891587,210.48,210.4,0.63]
[1759285204898,17.31891587,210.48,210.39,70.4]
[1759285205191,0.69,210.47,210.4,0.63]
[1759285206571,4.75149672,210.46,210.4,0.63]
[1759285206777,5.44149672,210.46,210.4,0.63]
[1759285208104,5.44149672,210.46,210.39,70.4]
[1759285208313,5.44149672,210.46,210.4,0.63]
[1759285209912,4.75104522,210.48,210.42,0.28432314]
[1759285210072,0.69,210.47,210.43,33.4]
[1759285210271,4.75104522,210.48,210.44,0.63]
[1759285210993,4.75104522,210.48,210.43,33.4]
[1759285211196,17.31865829,210.48,210.43,33.4]
[1759285211403,17.31865829,210.48,210.43,34.03]
[1759285211585,4.75104522,210.48,210.44,0.63]
[1759285211787,12.56622705,210.51,210.45,0.63]
[1759285211788,4.75081534,210.5,210.45,0.63]
[1759285212001,5.44081534,210.5,210.46,33.4]
[1759285212384,0.69,210.49,210.46,33.4]
[1759285213206,16.6272999,210.5,210.46,33.4]
[1759285213383,4.75104522,210.48,210.46,33.4]
[1759285215107,4.75104522,210.48,210.47,37.04]
[1759285215401,25.55084206,210.49,210.47,37.04]
[1759285215612,20.8,210.49,210.47,37.04]
[1759285216806,4.75083333,210.49,210.47,37.04]
[1759285216983,5.44083333,210.49,210.47,37.04]
[1759285218893,4.75083333,210.49,210.47,37.04]
[1759285220214,4.75083333,210.49,210.48,33.36]
[1759285221907,5.41083333,210.49,210.48,33.36]
[1759285223903,27.72294662,210.49,210.47,37.04]